[Event "Hunan Belt and Road Open 2019"]
[Site "Hunan"]
[Date "2019.07.31"]
[Round "3.9"]
[White "Li, Di"]
[Black "Zhao, Jun"]
[Result "1/2-1/2"]
[ECO "E90"]
[WhiteElo "2523"]
[BlackElo "2636"]
[Annotator "RC"]
[PlyCount "47"]
[EventDate "2019.07.29"]
[EventType "swiss"]
[EventCountry "CHN"]
[SourceTitle "playchess.com"]
[Source "ChessBase"]
[SourceQuality "1"]
[TimeControl "5400+30"]

1. d4 {[%emt 0:00:00]} Nf6 {[%emt 0:02:05]} 2. c4 {[%emt 0:00:00]} g6 {[%emt 0:00:57]} 3. Nc3 {[%emt 0:00:10]} Bg7 {[%emt 0:00:47]} 4. e4 {[%emt 0:00:09]} d6 {[%emt 0:00:04]} 5. h3 {[%emt 0:00:12]} O-O {[%emt 0:00:52]} 6. Be3 {[%emt 0:00:07]} a6 {[%emt 0:01:09]} 7. Nf3 {[%emt 0:00:19]} c6 {[%emt 0:00:12]} 8. c5 {[%emt 0:00:58]} Nbd7 {[%emt 0:02:11]} 9. Qc2 {[%emt 0:10:23]} b5 {[%emt 0:06:04]} 10. Be2 {[%emt 0:07:40]} dxc5 {[%emt 0:10:37]} 11. dxc5 {[%emt 0:01:46]} e5 {[%emt 0:00:53]} 12. O-O {[%emt 0:04:21]} Nh5 {[%emt 0:00:29]} 13. a4 {[%emt 0:03:22]} Bb7 {[%emt 0:29:15]} 14. Rfd1 {[%emt 0:03:28]} Qc7 {[%emt 0:00:06]} 15. g3 {[%emt 0:13:44]} Rfd8 {[%emt 0:03:53]} 16. axb5 axb5 {[%emt 0:00:05]} 17. Rxa8 Rxa8 {[%emt 0:01:01]} 18. b4 {[%emt 0:04:47]} Nf8 {[%emt 0:00:26]} 19. Rd6 {[%emt 0:02:04]} Nf6 {[%emt 0:03:06]} 20. Kh2 {[%emt 0:09:39]} Ne8 {[%emt 0:00:49]} 21. Rd1 {[%emt 0:00:14]} Ne6 {[%emt 0:01:18]} 22. Bf1 {[%emt 0:04:02]} h5 {[%emt 0:02:24]} 23. Bg2 {[%emt 0:02:21]} Rd8 {[%emt 0:02:00]} 24. Ra1 {[%emt 0:05:24]} 1/2-1/2

[Event "Hunan Belt and Road Open 2019"]
[Site "Hunan"]
[Date "2019.07.31"]
[Round "3.10"]
[White "Sethuraman, S.P."]
[Black "Batchuluun, Tsegmed"]
[Result "1/2-1/2"]
[ECO "D41"]
[WhiteElo "2630"]
[BlackElo "2535"]
[Annotator "RC"]
[PlyCount "51"]
[EventDate "2019.07.29"]
[EventType "swiss"]
[EventCountry "CHN"]
[SourceTitle "playchess.com"]
[Source "ChessBase"]
[SourceQuality "1"]
[TimeControl "5400+30"]

1. d4 {[%emt 0:00:00]} Nf6 {[%emt 0:00:00]} 2. c4 {[%emt 0:00:03]} e6 {[%emt 0:00:08]} 3. Nf3 {[%emt 0:00:05]} d5 {[%emt 0:00:35]} 4. Nc3 {[%emt 0:00:07]} c5 {[%emt 0:02:31]} 5. cxd5 {[%emt 0:00:34]} Nxd5 {[%emt 0:00:08]} 6. e4 {[%emt 0:00:05]} Nxc3 {[%emt 0:00:10]} 7. bxc3 {[%emt 0:00:04]} cxd4 {[%emt 0:00:07]} 8. cxd4 {[%emt 0:00:04]} Bb4+ {[%emt 0:00:07]} 9. Bd2 {[%emt 0:00:05]} Bxd2+ 10. Qxd2 {[%emt 0:00:05]} O-O {[%emt 0:00:15]} 11. Bc4 {[%emt 0:00:16]} Nd7 {[%emt 0:00:44]} 12. O-O {[%emt 0:00:29]} b6 {[%emt 0:00:12]} 13. Rad1 {[%emt 0:00:47]} Bb7 {[%emt 0:00:06]} 14. Rfe1 {[%emt 0:00:06]} Rc8 {[%emt 0:00:44]} 15. Bb3 {[%emt 0:00:39]} Qf6 {[%emt 0:10:25]} 16. h3 {[%emt 0:04:28]} Rfe8 {[%emt 0:03:21]} 17. Re3 {[%emt 0:16:18]} h6 {[%emt 0:09:22]} 18. Qe2 {[%emt 0:05:29]} Qf4 {[%emt 0:14:32]} 19. e5 {[%emt 0:06:05]} Red8 {[%emt 0:02:37]} 20. g3 {[%emt 0:19:22]} Qf5 {[%emt 0:10:50]} 21. g4 {[%emt 0:13:34]} Qg6 {[%emt 0:07:08]} 22. Ne1 {[%emt 0:11:57]} Qg5 {[%emt 0:03:12]} 23. Ng2 {[%emt 0:00:07]} Bxg2 {[%emt 0:02:30]} 24. Kxg2 {[%emt 0:00:05]} Nf8 {[%emt 0:00:03]} 25. Qf3 {[%emt 0:08:03]} Ng6 {[%emt 0:01:52]} 26. Kf1 {[%emt 0:00:42]} 1/2-1/2

[Event "Hunan Belt and Road Open 2019"]
[Site "Hunan"]
[Date "2019.07.31"]
[Round "3.23"]
[White "Megaranto, Susanto"]
[Black "Fang, Yan"]
[Result "1-0"]
[ECO "D64"]
[WhiteElo "2545"]
[BlackElo "2424"]
[Annotator "ChessBase"]
[PlyCount "67"]
[EventDate "2019.07.29"]
[EventType "swiss"]
[EventCountry "CHN"]
[SourceTitle "playchess.com"]
[Source "ChessBase"]
[SourceQuality "1"]
[TimeControl "5400+30"]

1. Nf3 {[%emt 0:00:00]} d5 {[%emt 0:00:00]} 2. d4 {[%emt 0:00:00]} e6 {[%emt 0:00:07]} 3. c4 {[%emt 0:01:27]} Nf6 {[%emt 0:00:32]} 4. Nc3 {[%emt 0:00:20]} Be7 {[%emt 0:02:07]} 5. Bg5 {[%emt 0:00:22]} O-O {[%emt 0:01:45]} 6. e3 {[%emt 0:00:05]} Nbd7 {[%emt 0:00:15]} 7. Rc1 {[%emt 0:01:19]} c6 {[%emt 0:03:20]} 8. Qc2 {[%emt 0:02:48]} a6 {[%emt 0:05:19]} 9. a4 {[%emt 0:07:03]} b6 {[%emt 0:12:01]} 10. cxd5 {[%emt 0:05:06]} cxd5 {[%emt 0:00:11]} 11. Bd3 {[%emt 0:00:30]} Bb7 {[%emt 0:00:29]} 12. O-O {[%emt 0:01:43]} h6 {[%emt 0:02:19]} 13. Bf4 {[%emt 0:03:27]} Nh5 {[%emt 0:08:29]} 14. Be5 {[%emt 0:01:02]} Nhf6 {[%emt 0:06:08]} 15. Bf4 {[%emt 0:03:54]} Nh5 {[%emt 0:00:44]} 16. h3 {[%emt 0:05:27]} Nxf4 {[%emt 0:00:09]} 17. exf4 {[%emt 0:00:02]} Bd6 {[%emt 0:07:55]} 18. Qd2 {[%emt 0:04:31]} Re8 {[%emt 0:09:31]} 19. Ne5 {[%emt 0:09:35]} f6 {[%emt 0:01:27]} 20. Nf3 {[%emt 0:03:15]} g5 {[%emt 0:11:51]} 21. Ne2 {[%emt 0:04:08]} Qe7 {[%emt 0:00:13]} 22. Nh2 {[%emt 0:07:35]} Qg7 {[%emt 0:03:31]} 23. f5 {[%emt 0:03:55]} Nf8 {[%emt 0:09:41]} 24. Ng4 {[%emt 0:06:24]} exf5 {[%emt 0:02:33]} 25. Bxf5 {[%emt 0:01:01]} Ng6 {[%emt 0:02:18]} 26. Ng3 {[%emt 0:03:19]} Nf4 {[%emt 0:01:05]} 27. Bd7 {[%emt 0:02:53]} Rf8 {[%emt 0:01:14]} 28. Bc6 {[%emt 0:00:21]} f5 {[%emt 0:04:14]} 29. Ne3 {[%emt 0:00:41]} Bxc6 {[%emt 0:00:26]} 30. Rxc6 {[%emt 0:00:18]} Qd7 {[%emt 0:00:24]} 31. Qc2 {[%emt 0:05:27]} Rf6 {[%emt 0:03:38]} 32. Ngxf5 {[%emt 0:01:07]} Raf8 {[%emt 0:00:18]} 33. Nxd6 {[%emt 0:02:41]} Rxd6 {[%emt 0:00:06]} 34. Rc7 {[%emt 0:00:22]} 1-0

[Event "Hunan Belt and Road Open 2019"]
[Site "Hunan"]
[Date "2019.07.31"]
[Round "3.25"]
[White "Tan, Zhongyi"]
[Black "Zhao, Chenxi"]
[Result "*"]
[ECO "D16"]
[WhiteElo "2511"]
[BlackElo "2400"]
[Annotator "ChessBase"]
[PlyCount "34"]
[EventDate "2019.07.29"]
[EventType "swiss"]
[EventCountry "CHN"]
[SourceTitle "playchess.com"]
[Source "ChessBase"]
[SourceQuality "1"]
[TimeControl "5400+30"]

1. d4 {[%emt 0:04:20]} Nf6 {[%emt 0:00:46]} 2. c4 {[%emt 0:00:30]} c6 {[%emt 0:00:30]} 3. Nf3 {[%emt 0:00:30]} d5 {[%emt 0:00:30]} 4. Nc3 {[%emt 0:00:30]} dxc4 {[%emt 0:00:30]} 5. a4 {[%emt 0:00:30]} Bg4 {[%emt 0:00:30]} 6. Ne5 {[%emt 0:00:30]} Bh5 {[%emt 0:00:30]} 7. f3 {[%emt 0:00:30]} Nbd7 {[%emt 0:00:30]} 8. Nxc4 {[%emt 0:00:30]} e6 {[%emt 0:00:30]} 9. e4 {[%emt 0:00:30]} Bb4 {[%emt 0:00:30]} 10. Be2 {[%emt 0:00:30]} O-O {[%emt 0:00:30]} 11. O-O {[%emt 0:00:30]} Nb6 {[%emt 0:00:30]} 12. Ne3 {[%emt 0:00:30]} a5 {[%emt 0:00:30]} 13. Nc2 {[%emt 0:00:30]} Qc7 {[%emt 0:00:30]} 14. Be3 {[%emt 0:00:30]} Rfd8 {[%emt 0:00:30]} 15. Qe1 {[%emt 0:00:30]} Be7 {[%emt 0:00:30]} 16. Qf2 {[%emt 0:00:30]} Bg6 {[%emt 0:00:30]} 17. Rac1 {[%emt 0:00:30]} Nbd7 {[%emt 0:00:30]} *

[Event "Hunan Belt and Road Open 2019"]
[Site "Hunan"]
[Date "2019.07.31"]
[Round "3.28"]
[White "Li, Yankai"]
[Black "Radovanovic, Mihajlo"]
[Result "1-0"]
[ECO "E73"]
[WhiteElo "2439"]
[BlackElo "2500"]
[Annotator "ChessBase"]
[PlyCount "121"]
[EventDate "2019.07.29"]
[EventType "swiss"]
[EventCountry "CHN"]
[SourceTitle "playchess.com"]
[Source "ChessBase"]
[SourceQuality "1"]
[TimeControl "5400+30"]

1. d4 {[%emt 0:00:00]} Nf6 {[%emt 0:00:00]} 2. c4 {[%emt 0:00:00]} g6 {[%emt 0:00:01]} 3. Nc3 {[%emt 0:00:00]} Bg7 {[%emt 0:00:06]} 4. e4 {[%emt 0:00:00]} d6 {[%emt 0:00:06]} 5. Be2 {[%emt 0:00:00]} O-O {[%emt 0:00:22]} 6. Bg5 {[%emt 0:00:00]} Na6 {[%emt 0:00:21]} 7. Qd2 {[%emt 0:00:00]} Qe8 {[%emt 0:00:58]} 8. Bd1 {[%emt 0:01:23]} Qc6 {[%emt 0:01:17]} 9. Qe2 {[%emt 0:17:16]} h6 {[%emt 0:00:34]} 10. Bd2 {[%emt 0:05:31]} e5 {[%emt 0:01:27]} 11. d5 {[%emt 0:05:14]} Qe8 {[%emt 0:00:11]} 12. f3 {[%emt 0:02:09]} Nh5 {[%emt 0:12:34]} 13. Be3 {[%emt 0:03:54]} f5 {[%emt 0:04:41]} 14. Qd2 {[%emt 0:00:21]} Qe7 {[%emt 0:07:56]} 15. g3 {[%emt 0:08:00]} Bd7 {[%emt 0:07:58]} 16. a3 {[%emt 0:02:55]} c6 {[%emt 0:03:47]} 17. b4 {[%emt 0:02:57]} c5 {[%emt 0:05:16]} 18. b5 {[%emt 0:06:19]} Nc7 {[%emt 0:00:27]} 19. Bxh6 {[%emt 0:01:08]} f4 {[%emt 0:00:18]} 20. Bxg7 {[%emt 0:00:08]} Kxg7 {[%emt 0:00:21]} 21. g4 {[%emt 0:06:36]} Qh4+ {[%emt 0:00:17]} 22. Qf2 {[%emt 0:00:03]} Ng3 {[%emt 0:00:11]} 23. h3 {[%emt 0:01:34]} Rh8 {[%emt 0:02:19]} 24. Rh2 {[%emt 0:00:16]} b6 {[%emt 0:09:42]} 25. a4 {[%emt 0:02:43]} a6 {[%emt 0:02:52]} 26. Rb1 {[%emt 0:01:04]} axb5 {[%emt 0:02:38]} 27. cxb5 {[%emt 0:00:07]} Ne8 {[%emt 0:00:07]} 28. Rg2 {[%emt 0:04:33]} Nf6 {[%emt 0:00:15]} 29. Bc2 {[%emt 0:00:36]} Qg5 {[%emt 0:14:05]} 30. Kd1 {[%emt 0:11:59]} Rh6 {[%emt 0:03:47]} 31. Nce2 {[%emt 0:02:05]} Nxe2 {[%emt 0:04:25]} 32. Kxe2 {[%emt 0:00:56]} Nh7 {[%emt 0:00:08]} 33. Rh2 {[%emt 0:05:27]} Rh4 {[%emt 0:00:29]} 34. Kd3 {[%emt 0:01:22]} Qh6 {[%emt 0:00:45]} 35. Kc4 {[%emt 0:00:14]} Ng5 {[%emt 0:00:06]} 36. Qg2 {[%emt 0:00:58]} Nf7 {[%emt 0:02:26]} 37. Ne2 {[%emt 0:00:47]} Nd8 {[%emt 0:00:59]} 38. Nc1 {[%emt 0:01:33]} Nb7 {[%emt 0:00:38]} 39. Nd3 {[%emt 0:00:12]} Rh8 {[%emt 0:01:22]} 40. Rbh1 {[%emt 0:00:23]} Qg5 {[%emt 0:00:25]} 41. Nb2 {[%emt 0:01:04]} Qd8 {[%emt 0:04:16]} 42. Kc3 {[%emt 0:00:28]} c4 {[%emt 0:01:44]} 43. Nxc4 {[%emt 0:01:29]} Qc7 {[%emt 0:00:44]} 44. Rb1 {[%emt 0:00:15]} Na5 {[%emt 0:03:50]} 45. Rb4 {[%emt 0:00:07]} Qc5 {[%emt 0:00:07]} 46. Bd3 {[%emt 0:04:13]} Qd4+ {[%emt 0:01:47]} 47. Kc2 {[%emt 0:00:43]} Rc8 {[%emt 0:00:18]} 48. Qf1 {[%emt 0:00:35]} Rhh8 {[%emt 0:00:22]} 49. Kb1 {[%emt 0:00:41]} Qc3 {[%emt 0:02:15]} 50. Rhb2 {[%emt 0:00:47]} Nxc4 {[%emt 0:01:53]} 51. Rxc4 {[%emt 0:01:20]} Rxc4 {[%emt 0:00:05]} 52. Bxc4 {[%emt 0:00:03]} Rc8 {[%emt 0:00:12]} 53. Bb3 {[%emt 0:00:18]} Qe3 {[%emt 0:00:51]} 54. Qf2 {[%emt 0:00:30]} Qc1+ {[%emt 0:01:21]} 55. Ka2 {[%emt 0:00:02]} Bxb5 {[%emt 0:00:06]} 56. Qxb6 {[%emt 0:00:42]} Bd3 {[%emt 0:00:34]} 57. Qxd6 {[%emt 0:00:43]} Qc3 {[%emt 0:00:35]} 58. Qe7+ {[%emt 0:00:32]} Kg8 {[%emt 0:00:35]} 59. Qe6+ {[%emt 0:00:22]} Kg7 {[%emt 0:00:05]} 60. d6 {[%emt 0:01:06]} Rb8 {[%emt 0:01:05]} 61. d7 {[%emt 0:00:55]} 1-0

[Event "Hunan Belt and Road Open 2019"]
[Site "Hunan"]
[Date "2019.07.31"]
[Round "3.33"]
[White "Zhu, Jiner"]
[Black "Chen, Qi b"]
[Result "1/2-1/2"]
[ECO "C54"]
[WhiteElo "2454"]
[BlackElo "2414"]
[Annotator "ChessBase"]
[PlyCount "95"]
[EventDate "2019.07.29"]
[EventType "swiss"]
[EventCountry "CHN"]
[SourceTitle "playchess.com"]
[Source "ChessBase"]
[SourceQuality "1"]
[TimeControl "5400+30"]

1. e4 {[%emt 0:00:00]} e5 {[%emt 0:00:00]} 2. Nf3 {[%emt 0:00:00]} Nc6 {[%emt 0:00:00]} 3. Bc4 {[%emt 0:00:02]} Bc5 {[%emt 0:00:00]} 4. O-O {[%emt 0:00:09]} Nf6 {[%emt 0:00:08]} 5. d3 {[%emt 0:00:20]} d6 {[%emt 0:00:15]} 6. c3 {[%emt 0:00:47]} O-O {[%emt 0:00:59]} 7. Bb3 {[%emt 0:00:38]} a5 {[%emt 0:00:42]} 8. Nbd2 {[%emt 0:00:48]} h6 {[%emt 0:00:27]} 9. h3 {[%emt 0:00:24]} Be6 {[%emt 0:01:15]} 10. Bc2 {[%emt 0:03:33]} Re8 {[%emt 0:12:58]} 11. Re1 {[%emt 0:00:45]} Qb8 {[%emt 0:13:05]} 12. Nh4 {[%emt 0:11:41]} Qd8 {[%emt 0:12:14]} 13. Nhf3 {[%emt 0:11:21]} Qb8 {[%emt 0:00:47]} 14. Nf1 {[%emt 0:13:08]} Qa7 {[%emt 0:00:31]} 15. Qe2 {[%emt 0:00:13]} Rad8 {[%emt 0:16:20]} 16. Ng3 {[%emt 0:05:18]} d5 {[%emt 0:04:09]} 17. Nh4 {[%emt 0:05:19]} dxe4 18. dxe4 {[%emt 0:00:05]} Kh7 {[%emt 0:04:13]} 19. Nhf5 {[%emt 0:03:29]} Ne7 {[%emt 0:06:39]} 20. Qf3 {[%emt 0:02:53]} Neg8 {[%emt 0:01:10]} 21. b3 {[%emt 0:04:17]} Rd7 {[%emt 0:00:53]} 22. Nf1 {[%emt 0:02:51]} Red8 {[%emt 0:03:51]} 23. g4 {[%emt 0:01:31]} Ne8 {[%emt 0:02:35]} 24. g5 {[%emt 0:03:01]} g6 {[%emt 0:02:06]} 25. Nxh6 {[%emt 0:03:23]} Nxh6 {[%emt 0:00:38]} 26. gxh6 {[%emt 0:00:06]} Bf8 {[%emt 0:06:41]} 27. Be3 {[%emt 0:01:40]} Bc5 {[%emt 0:00:35]} 28. Bc1 {[%emt 0:14:43]} Bf8 {[%emt 0:00:08]} 29. Qg3 {[%emt 0:00:04]} Qc5 {[%emt 0:01:53]} 30. Nh2 {[%emt 0:00:50]} Nf6 {[%emt 0:04:20]} 31. Nf3 {[%emt 0:01:07]} Bxh6 {[%emt 0:01:12]} 32. Nxe5 {[%emt 0:03:35]} Re7 {[%emt 0:01:02]} 33. Bxh6 {[%emt 0:02:05]} Kxh6 {[%emt 0:00:03]} 34. Rad1 {[%emt 0:04:24]} Rxd1 {[%emt 0:01:37]} 35. Rxd1 {[%emt 0:00:27]} Nh5 {[%emt 0:00:42]} 36. Qh4 {[%emt 0:01:05]} g5 {[%emt 0:00:52]} 37. Ng4+ {[%emt 0:00:05]} Bxg4 {[%emt 0:00:02]} 38. Qxg4 {[%emt 0:00:05]} Qxc3 {[%emt 0:00:26]} 39. h4 {[%emt 0:00:22]} gxh4 {[%emt 0:01:54]} 40. Rd8 {[%emt 0:01:51]} Qg7 {[%emt 0:01:23]} 41. Rg8 {[%emt 0:01:15]} Qxg4+ {[%emt 0:00:29]} 42. Rxg4 {[%emt 0:00:04]} Re6 {[%emt 0:00:38]} 43. Rxh4 {[%emt 0:00:21]} Kg5 {[%emt 0:00:10]} 44. Rh3 {[%emt 0:00:34]} Nf4 {[%emt 0:00:35]} 45. Rg3+ {[%emt 0:00:33]} Kf6 {[%emt 0:00:37]} 46. Kf1 {[%emt 0:00:11]} Rc6 {[%emt 0:00:24]} 47. Bd1 {[%emt 0:00:05]} Rc1 {[%emt 0:00:37]} 48. Ke1 {[%emt 0:00:04]} 1/2-1/2

[Event "Hunan Belt and Road Open 2019"]
[Site "Hunan"]
[Date "2019.07.31"]
[Round "3.34"]
[White "Xiang, Zeyu"]
[Black "Lin, Weiguo"]
[Result "1/2-1/2"]
[ECO "D13"]
[WhiteElo "2447"]
[BlackElo "2408"]
[Annotator "NA"]
[PlyCount "41"]
[EventDate "2019.07.29"]
[EventType "swiss"]
[EventCountry "CHN"]
[SourceTitle "playchess.com"]
[Source "ChessBase"]
[SourceQuality "1"]
[TimeControl "5400+30"]

1. d4 {[%emt 0:00:00]} d5 {[%emt 0:06:12]} 2. c4 {[%emt 0:00:00]} c6 {[%emt 0:00:30]} 3. cxd5 {[%emt 0:00:29]} cxd5 {[%emt 0:00:30]} 4. Bf4 {[%emt 0:00:30]} Nc6 {[%emt 0:00:30]} 5. e3 {[%emt 0:00:30]} Nf6 {[%emt 0:00:30]} 6. Nc3 {[%emt 0:00:30]} e6 {[%emt 0:00:30]} 7. Bd3 {[%emt 0:00:30]} Bd6 {[%emt 0:00:30]} 8. Nf3 {[%emt 0:00:30]} Bxf4 {[%emt 0:00:30]} 9. exf4 {[%emt 0:00:30]} O-O {[%emt 0:00:30]} 10. O-O {[%emt 0:00:30]} Qb6 {[%emt 0:00:30]} 11. Na4 {[%emt 0:00:30]} Qc7 {[%emt 0:00:30]} 12. Ne5 {[%emt 0:00:30]} Nxd4 {[%emt 0:00:30]} 13. Bxh7+ {[%emt 0:00:30]} Nxh7 {[%emt 0:00:30]} 14. Qxd4 {[%emt 0:00:30]} f6 {[%emt 0:00:30]} 15. Nd3 {[%emt 0:00:30]} Rd8 {[%emt 0:00:30]} 16. Rac1 {[%emt 0:00:30]} Qd6 {[%emt 0:00:30]} 17. Nc3 {[%emt 0:00:30]} Nf8 {[%emt 0:00:30]} 18. Rfd1 {[%emt 0:00:30]} Bd7 {[%emt 0:00:30]} 19. f5 {[%emt 0:00:30]} Bc6 {[%emt 0:00:30]} 20. fxe6 {[%emt 0:00:30]} Nxe6 {[%emt 0:00:30]} 21. Qg4 {[%emt 0:00:30]} 1/2-1/2

[Event "Hunan Belt and Road Open 2019"]
[Site "Hunan"]
[Date "2019.07.31"]
[Round "3.36"]
[White "Munkhgal, Gombosuren"]
[Black "Liu, Guanchu"]
[Result "1/2-1/2"]
[ECO "E32"]
[WhiteElo "2442"]
[BlackElo "2449"]
[Annotator "NA"]
[PlyCount "50"]
[EventDate "2019.07.29"]
[EventType "swiss"]
[EventCountry "CHN"]
[SourceTitle "playchess.com"]
[Source "ChessBase"]
[SourceQuality "1"]
[TimeControl "5400+30"]

1. d4 {[%emt 0:00:00]} e6 {[%emt 0:02:36]} 2. c4 {[%emt 0:00:00]} Nf6 {[%emt 0:00:30]} 3. Nc3 {[%emt 0:00:01]} Bb4 {[%emt 0:00:31]} 4. Qc2 {[%emt 0:00:13]} O-O {[%emt 0:00:29]} 5. e4 {[%emt 0:00:06]} d5 {[%emt 0:01:37]} 6. e5 {[%emt 0:00:08]} Ne4 {[%emt 0:00:55]} 7. Bd3 {[%emt 0:00:46]} c5 {[%emt 0:00:12]} 8. Nf3 {[%emt 0:00:05]} cxd4 {[%emt 0:00:56]} 9. Nxd4 {[%emt 0:00:06]} Nd7 {[%emt 0:00:57]} 10. Bf4 {[%emt 0:02:20]} Qh4 {[%emt 0:01:05]} 11. g3 {[%emt 0:00:07]} Qh5 {[%emt 0:00:06]} 12. h4 {[%emt 0:01:01]} Nxe5 {[%emt 0:19:55]} 13. Be2 {[%emt 0:01:27]} Ng4 {[%emt 0:00:28]} 14. Bxg4 {[%emt 0:06:03]} Qxg4 {[%emt 0:00:10]} 15. f3 {[%emt 0:00:11]} Qh5 {[%emt 0:08:52]} 16. g4 {[%emt 0:00:42]} Qg6 {[%emt 0:00:08]} 17. fxe4 {[%emt 0:00:12]} e5 {[%emt 0:00:04]} 18. Bxe5 {[%emt 0:21:42]} Bxg4 {[%emt 0:16:28]} 19. exd5 {[%emt 0:34:22]} Rae8 {[%emt 0:11:21]} 20. Qxg6 {[%emt 0:00:13]} Rxe5+ {[%emt 0:00:06]} 21. Kd2 {[%emt 0:00:19]} fxg6 {[%emt 0:00:25]} 22. Raf1 {[%emt 0:01:37]} Rc8 {[%emt 0:00:08]} 23. Rf4 {[%emt 0:05:38]} h5 {[%emt 0:01:23]} 24. Kd3 {[%emt 0:02:29]} Bxc3 {[%emt 0:08:41]} 25. bxc3 {[%emt 0:00:47]} g5 {[%emt 0:00:07]} 1/2-1/2